bitfinex-derivatives/quotes_SOLF0:USTF0_20250626
["timestamp","ask_amount","ask_price","bid_price","bid_amount"]
[1750914320173,37.59254586,145.24,145.21,15.4539386]
[1750914320370,37.59254586,145.24,145.22,6.8829]
[1750914321074,34.18,145.24,145.23,6.8825]
[1750914321674,34.18,145.24,145.22,15.4535386]
[1750914321878,34.18,145.24,145.21,8.5706386]
[1750914322685,41.0623,145.24,145.21,8.5706386]
[1750914322884,44.47484586,145.24,145.2,8.5706386]
[1750914324076,37.59254586,145.24,145.21,6.8831]
[1750914324278,37.59254586,145.24,145.21,15.4537386]
[1750914324583,37.59254586,145.24,145.22,8.5706386]
[1750914325286,37.59254586,145.24,145.22,15.4534386]
[1750914325685,34.18,145.24,145.22,15.4534386]
[1750914327378,34.18,145.24,145.23,6.8825]
[1750914327579,34.18,145.27,145.23,8.5706386]
[1750914328683,41.0608,145.27,145.24,6.8819]
[1750914342294,2.18304672,145.26,145.24,6.8819]
[1750914343406,2.18304672,145.27,145.25,6.8814]
[1750914343590,4.3140833,145.29,145.24,8.5706386]
[1750914343795,2.18304672,145.27,145.24,8.5706386]
[1750914344199,2.18304672,145.27,145.26,6.8811]
[1750914345699,2.18304672,145.27,145.25,6.8813]
[1750914350505,2.18304672,145.27,145.25,15.4519386]
[1750914358113,2.18304672,145.27,145.26,6.8811]
[1750914358308,2.18304672,145.27,145.25,8.5706386]
[1750914359109,2.18304672,145.27,145.25,15.4520386]
[1750914359410,2.18304672,145.27,145.25,6.8814]
[1750914359606,9.06394672,145.27,145.24,8.5706386]
[1750914359911,2.18304672,145.26,145.24,8.5706386]
[1750914360208,2.18304672,145.25,145.24,8.5706386]
[1750914361010,9.06454672,145.25,145.24,8.5706386]
[1750914361206,2.18304672,145.25,145.23,8.5706386]
[1750914361410,2.18304672,145.24,145.22,8.5706386]
[1750914361608,2.18304672,145.23,145.21,8.5706386]
[1750914362115,2.18304672,145.22,145.21,8.5706386]
[1750914364007,6.8822,145.24,145.21,15.4540386]
[1750914364313,2.18304672,145.23,145.21,15.4540386]
[1750914365412,2.18304672,145.23,145.22,8.5706386]
[1750914365615,9.06554672,145.23,145.21,8.5706386]
[1750914367027,9.06604672,145.22,145.21,8.5706386]
[1750914367230,2.18304672,145.22,145.18,8.5706386]
[1750914367523,2.18304672,145.22,145.17,125.0]
[1750914367524,2.18304672,145.2,145.17,8.5706386]
[1750914367723,2.18304672,145.2,145.18,6.8848]
[1750914367921,2.18304672,145.19,145.16,10.75368532]
[1750914368226,2.18304672,145.19,145.15,9.2354]
[1750914368227,2.18304672,145.18,145.15,9.2354]
[1750914369227,2.18304672,145.17,145.14,131.8866]
[1750914369526,41.0449,145.18,145.14,131.8866]
[1750914369527,2.18304672,145.16,145.14,131.8866]
[1750914369730,2.18304672,145.16,145.14,6.8866]
[1750914370321,34.16,145.18,145.15,6.8863]
[1750914370828,41.0451,145.18,145.15,6.8863]
[1750914373315,34.16,145.18,145.15,6.8863]
[1750914373831,34.16,145.18,145.13,6.8872]
[1750914374230,34.16,145.18,145.11,163.9369]
[1750914374430,6.8856,145.17,145.13,6.8868]
[1750914375730,6.8858,145.16,145.13,6.8868]
[1750914377033,6.8854,145.17,145.13,6.8868]
[1750914377436,6.8854,145.17,145.14,6.8867]
[1750914377629,41.045,145.18,145.14,6.8867]
[1750914378835,6.8854,145.17,145.11,8.19238439]
[1750914379027,6.8854,145.17,145.11,133.19238439]
[1750914379224,6.8854,145.17,145.14,6.8867]
[1750914382436,6.8854,145.17,145.13,6.8869]
[1750914385241,6.8859,145.16,145.13,6.8869]
[1750914385641,37.57548439,145.18,145.13,6.8869]
[1750914385838,6.8855,145.17,145.13,6.8869]
[1750914386140,6.8855,145.17,145.14,6.8867]
[1750914387143,44.46048439,145.18,145.14,6.8867]
[1750914388843,44.46048439,145.18,145.15,6.8862]
[1750914389643,6.8854,145.17,145.14,6.8866]
[1750914390243,9.07107151,145.17,145.14,6.8866]
[1750914391540,9.07107151,145.17,145.13,9.07257151]
[1750914391842,9.07107151,145.17,145.13,2.18567151]
[1750914392144,2.18567151,145.16,145.13,2.18567151]
[1750914392645,2.18567151,145.16,145.14,6.8865]
[1750914393442,9.07107151,145.17,145.14,6.8865]
[1750914393745,2.18567151,145.17,145.15,6.8862]
[1750914393943,34.16,145.18,145.14,2.18567151]
[1750914394143,34.16,145.18,145.15,2.18567151]
[1750914394337,34.16,145.18,145.16,6.8858]
[1750914395641,34.16,145.18,145.15,6.8859]
[1750914395948,36.34567151,145.18,145.15,6.8859]
[1750914396133,36.34567151,145.18,145.14,6.8866]
[1750914396334,2.18567151,145.17,145.13,2.18567151]
[1750914397551,9.07127151,145.17,145.14,6.8866]
[1750914402145,2.18567151,145.16,145.13,6.887]
[1750914402454,2.18567151,145.16,145.12,2.18567151]
[1750914402752,9.07127151,145.17,145.13,2.18567151]
[1750914403656,9.07127151,145.17,145.14,6.8866]
[1750914410359,9.07127151,145.17,145.14,13.32135316]
[1750914412252,41.0249,145.18,145.15,6.8862]
[1750914412456,34.14,145.18,145.15,13.32095316]
[1750914412655,36.32567151,145.18,145.16,6.43475316]
[1750914412851,36.32567151,145.18,145.16,13.32055316]
[1750914414562,36.32567151,145.18,145.16,6.43475316]
[1750914415160,34.14,145.18,145.16,6.43475316]
[1750914415464,34.14,145.18,145.15,2.18567151]
[1750914416563,34.14,145.18,145.16,6.8856]
[1750914418064,34.14,145.18,145.17,6.8853]
[1750914418261,6.43832163,145.21,145.17,6.8853]
[1750914418563,2.18567151,145.2,145.17,6.8853]
[1750914419363,36.32567151,145.21,145.17,2.18567151]
[1750914419561,34.14,145.24,145.2,2.18567151]
[1750914419866,34.14,145.24,145.21,2.18567151]
[1750914420558,36.32567151,145.24,145.2,2.18567151]
[1750914421657,9.06857151,145.23,145.19,9.07007151]
[1750914422174,9.06857151,145.23,145.2,6.8838]
[1750914422355,6.8829,145.23,145.2,6.8838]
[1750914422667,43.20777151,145.24,145.2,6.8838]
[1750914423060,43.20777151,145.24,145.2,9.06947151]
[1750914423863,6.8827,145.23,145.2,2.18567151]
[1750914424057,9.06837151,145.23,145.2,2.18567151]
[1750914424761,9.06837151,145.23,145.19,9.06987151]
[1750914426460,9.06837151,145.23,145.2,6.8839]
[1750914428866,9.06867151,145.22,145.19,6.8843]
[1750914429468,2.18567151,145.22,145.19,6.8843]
[1750914431966,34.14,145.24,145.17,6.885]
[1750914431967,2.18567151,145.2,145.17,6.885]
[1750914432364,2.18567151,145.19,145.16,2.18567151]
[1750914432571,2.18567151,145.19,145.16,6.8855]
[1750914432866,2.18567151,145.19,145.14,38.9241]
[1750914432867,2.18567151,145.17,145.14,125.0]
[1750914433162,2.18567151,145.17,145.14,6.8864]
[1750914433968,2.18567151,145.17,145.15,6.8862]
[1750914434370,2.18567151,145.17,145.16,6.8858]
[1750914434669,2.18567151,145.17,145.13,127.18567151]
[1750914434862,2.18567151,145.17,145.15,6.8861]
[1750914435058,2.18567151,145.17,145.13,2.18567151]
[1750914435266,34.12,145.2,145.12,2.18567151]
[1750914435267,2.18567151,145.16,145.12,2.18567151]
[1750914435569,2.18567151,145.15,145.11,161.30567151]
[1750914435971,2.18567151,145.15,145.12,6.8876]
[1750914436268,2.18567151,145.15,145.11,161.30567151]
[1750914436465,2.18567151,145.15,145.13,6.8872]
[1750914438269,10.30129379,145.17,145.13,6.8872]
[1750914438770,6.8859,145.16,145.13,6.8872]
[1750914438970,3.41579379,145.15,145.12,6.8876]
[1750914440664,10.30209379,145.15,145.12,6.8876]
[1750914441873,3.41579379,145.15,145.11,6.888]
[1750914442273,3.41579379,145.15,145.1,127.3839]
[1750914443169,3.41579379,145.15,145.1,133.80398632]
[1750914444073,3.41579379,145.15,145.12,6.8874]
[1750914444575,3.41579379,145.15,145.1,133.80398632]
[1750914445274,3.41579379,145.15,145.12,6.8873]
[1750914447374,34.1,145.16,145.1,8.80398632]
[1750914447680,34.12,145.19,145.12,6.42008632]
[1750914447872,41.0045,145.19,145.16,6.8857]
[1750914449774,3.41579379,145.18,145.12,131.42008632]
[1750914449973,3.41579379,145.18,145.12,6.42008632]
[1750914450779,6.8854,145.17,145.14,6.8866]
[1750914450980,6.8854,145.17,145.12,6.42008632]
[1750914451281,6.8854,145.17,145.13,6.887]
[1750914451480,6.8854,145.17,145.11,134.83588011]
[1750914451682,6.8854,145.17,145.13,6.8868]
[1750914455181,6.8854,145.17,145.14,6.8867]
[1750914456683,6.8859,145.16,145.13,6.8871]
[1750914457279,6.8866,145.15,145.12,6.8875]
[1750914457486,6.8866,145.15,145.1,2.3839]
[1750914457877,6.8866,145.15,145.11,6.888]
[1750914458185,6.887,145.14,145.11,6.888]
[1750914458385,34.12,145.15,145.1,2.3839]
[1750914458580,34.12,145.15,145.12,6.8874]
[1750914459087,34.12,145.15,145.1,2.3839]
[1750914460176,34.12,145.15,145.09,6.41541914]
[1750914460385,3.41579379,145.14,145.09,6.41541914]
[1750914460691,3.41579379,145.14,145.08,42.88201914]
[1750914461188,34.12,145.15,145.08,46.29781293]
[1750914461393,37.53579379,145.15,145.08,46.29781293]
[1750914461997,44.42239379,145.15,145.11,6.8879]
[1750914462195,37.53579379,145.15,145.11,6.8879]
[1750914463591,6.8869,145.14,145.11,6.8879]
[1750914463897,37.53579379,145.15,145.12,6.8875]
[1750914464794,44.42239379,145.15,145.12,6.8875]
[1750914465001,37.53579379,145.15,145.11,6.888]
[1750914467507,44.42239379,145.15,145.11,6.888]
[1750914468800,44.42239379,145.15,145.12,6.8876]
[1750914471010,34.12,145.15,145.1,6.41541914]
[1750914471312,34.12,145.15,145.11,6.41541914]
[1750914471500,34.12,145.15,145.09,9.83121293]
[1750914471701,34.12,145.15,145.09,134.83121293]
[1750914472002,41.0063,145.15,145.12,6.8874]
[1750914478511,2.18651794,145.14,145.12,6.8874]
[1750914478999,2.18651794,145.14,145.12,13.30281914]
[1750914480802,2.18651794,145.14,145.12,6.8874]
[1750914481508,2.18651794,145.13,145.1,6.41541914]
[1750914481717,2.18651794,145.11,145.09,6.41541914]
[1750914482014,2.18651794,145.11,145.1,6.8884]
[1750914482304,10.30534338,145.13,145.1,6.8884]
[1750914482901,37.53784338,145.15,145.1,6.41541914]
[1750914483211,37.53784338,145.15,145.11,6.41541914]
[1750914484818,37.53784338,145.15,145.12,6.41541914]
[1750914485410,44.42444338,145.15,145.12,13.30311914]
[1750914486014,34.12,145.15,145.13,6.8872]
[1750914488016,34.12,145.15,145.12,6.41541914]
[1750914488202,34.12,145.15,145.13,6.41541914]
[1750914488715,34.12,145.15,145.13,13.30221914]
[1750914489714,34.12,145.15,145.13,6.8868]
[1750914494221,41.0064,145.15,145.12,13.30311914]
[1750914497224,41.0064,145.15,145.12,6.8877]
[1750914501021,6.8868,145.14,145.12,6.8877]
[1750914501227,34.12,145.15,145.12,13.33174704]
[1750914501613,41.0066,145.15,145.12,13.33174704]
[1750914502225,43.19289215,145.15,145.12,13.33174704]
[1750914503116,36.4656,145.18,145.13,8.63004295]
[1750914503317,36.4656,145.18,145.11,125.0]
[1750914503318,34.14,145.18,145.16,2.18599591]
[1750914503522,34.14,145.18,145.17,9.07014642]
[1750914503716,34.14,145.21,145.17,2.18484642]
[1750914503917,34.14,145.21,145.18,2.18484642]
[1750914504123,34.14,145.21,145.19,6.8841]
[1750914505725,34.14,145.21,145.19,9.06894642]
[1750914506023,34.14,145.21,145.19,2.18484642]
[1750914506220,34.14,145.21,145.18,6.8847]
[1750914507027,34.14,145.21,145.19,6.8843]
[1750914507829,34.14,145.21,145.16,128.41283557]
[1750914508121,37.55283557,145.24,145.18,3.41283557]
[1750914508326,44.43523557,145.24,145.2,6.8835]
[1750914508527,34.14,145.24,145.18,3.41283557]
[1750914509727,34.14,145.24,145.21,6.8832]
[1750914510231,34.14,145.24,145.22,6.8826]
[1750914510528,34.14,145.24,145.18,128.41283557]
[1750914510831,34.14,145.24,145.21,6.8833]
[1750914511329,34.14,145.24,145.18,128.41283557]
[1750914511724,34.14,145.24,145.22,6.8826]
[1750914512331,34.14,145.24,145.21,6.8833]
[1750914513024,41.0222,145.24,145.2,6.8839]
[1750914513934,6.8826,145.23,145.19,6.8842]
[1750914515436,6.8831,145.22,145.18,131.8844]
[1750914515735,6.8831,145.22,145.18,125.0]
[1750914516536,6.8831,145.22,145.19,6.8844]
[1750914516733,6.8827,145.23,145.19,6.8844]
[1750914520036,6.883,145.22,145.19,6.8844]
[1750914520238,6.883,145.22,145.18,6.8847]
[1750914521139,6.8835,145.21,145.18,6.8847]
[1750914521838,6.8841,145.2,145.15,130.83423557]
[1750914522043,3.41283557,145.2,145.14,127.2913]
[1750914522435,6.8847,145.19,145.16,6.8855]
[1750914522744,6.8847,145.19,145.13,39.93703557]
[1750914523551,6.8847,145.19,145.15,6.8861]
[1750914524154,6.8847,145.19,145.16,6.8858]
[1750914524451,44.41693557,145.2,145.16,6.8858]
[1750914526055,6.8845,145.19,145.16,6.8858]
[1750914528354,44.41693557,145.2,145.16,6.8858]
[1750914530656,44.41693557,145.2,145.17,6.8853]
[1750914531157,34.12,145.2,145.18,6.8847]
[1750914531750,34.12,145.2,145.19,6.8844]
[1750914532258,34.12,145.2,145.18,6.8847]
[1750914534563,37.53283557,145.2,145.13,164.93703557]
[1750914535057,6.8847,145.19,145.15,6.886]
[1750914536456,6.8847,145.19,145.16,6.8856]
[1750914536663,44.41693557,145.2,145.13,164.93703557]
[1750914537059,44.41693557,145.2,145.17,6.8852]
[1750914538064,37.53283557,145.2,145.17,6.8852]
[1750914539167,34.12,145.2,145.18,6.8847]
[1750914539361,34.12,145.2,145.15,3.41283557]
[1750914539565,10.29593557,145.22,145.15,3.41283557]
[1750914539566,3.41283557,145.22,145.15,3.41283557]
[1750914539761,3.41283557,145.22,145.19,6.8841]
[1750914539957,43.3335,145.23,145.19,6.8841]
[1750914540160,34.12,145.23,145.2,6.8836]
[1750914540653,3.41283557,145.22,145.16,129.7106]
[1750914540858,3.41283557,145.22,145.16,4.7106]
[1750914541466,34.12,145.23,145.17,3.41283557]
[1750914541673,37.53283557,145.23,145.17,3.41283557]
[1750914541968,44.41553557,145.23,145.19,6.8841]
[1750914544072,44.41553557,145.23,145.2,6.8839]
[1750914544770,37.53283557,145.23,145.2,6.8839]
[1750914544969,37.53283557,145.23,145.19,6.8842]
[1750914545172,44.41563557,145.23,145.19,6.8842]
[1750914545973,34.12,145.23,145.17,128.41283557]
[1750914546168,34.12,145.23,145.19,125.0]
[1750914546674,34.12,145.23,145.21,6.8832]
[1750914546974,34.12,145.23,145.19,125.0]
[1750914549685,34.12,145.23,145.21,6.883]
[1750914549978,34.12,145.23,145.19,125.0]
[1750914551575,34.12,145.23,145.22,6.883]
[1750914553782,34.12,145.23,145.21,6.8831]
[1750914556279,34.12,145.23,145.2,6.8837]
[1750914556484,37.53283557,145.23,145.19,125.0]
[1750914556678,37.53283557,145.23,145.17,159.12]
[1750914556880,44.41563557,145.23,145.19,6.884]
[1750914557190,37.53283557,145.23,145.19,6.884]
[1750914558276,34.12,145.23,145.18,3.41283557]
[1750914558480,37.53283557,145.26,145.18,5.82213557]
[1750914558784,37.53283557,145.26,145.18,130.82213557]
[1750914558982,37.53283557,145.26,145.18,164.94213557]
[1750914559374,44.41403557,145.26,145.18,164.94213557]
[1750914559885,44.41403557,145.26,145.22,6.8826]
[1750914561292,41.0012,145.26,145.23,6.8825]
[1750914562193,34.12,145.26,145.23,6.8825]
[1750914562683,629.06,145.27,145.2,3.41283557]
[1750914563292,635.9407,145.27,145.2,3.41283557]
[1750914564395,34.1,145.27,145.24,6.8817]
[1750914565388,3.40996173,145.33,145.26,3.40996173]
[1750914565592,37.50808451,145.34,145.26,3.40808451]
[1750914565795,44.38568451,145.34,145.3,6.8792]
[1750914566296,34.1,145.34,145.28,3.40808451]
[1750914567392,34.1,145.34,145.31,6.8784]
[1750914567795,34.1,145.34,145.28,37.50808451]
[1750914568388,40.9775,145.34,145.3,6.879]
[1750914569598,10.28508451,145.35,145.31,6.8783]
[1750914569893,3.40808451,145.35,145.28,37.50808451]
[1750914570302,6.8774,145.34,145.3,6.8788]
[1750914570999,6.8769,145.35,145.31,6.8786]
[1750914576200,6.8773,145.34,145.31,6.8786]
[1750914577502,6.877,145.35,145.31,6.8786]
[1750914578904,6.8773,145.34,145.3,6.879]
[1750914579205,5.77178451,145.36,145.28,162.50808451]
[1750914579404,6.8769,145.35,145.31,6.8784]
[1750914579597,37.50808451,145.37,145.3,3.40808451]
[1750914579801,37.50808451,145.37,145.3,128.40808451]
[1750914580302,40.976,145.37,145.33,6.8774]
[1750914580900,6.8763,145.36,145.32,6.8781]
[1750914582606,6.8763,145.36,145.33,6.8777]
[1750914582806,40.9761,145.37,145.33,6.8777]
[1750914583011,40.9761,145.37,145.3,128.40808451]
[1750914583508,34.1,145.37,145.3,128.40808451]
[1750914584006,2.3417,145.39,145.32,3.40808451]
[1750914584206,638.98268451,145.4,145.32,37.48808451]
[1750914584505,638.98268451,145.4,145.34,3.40808451]
[1750914584705,44.36268451,145.4,145.34,3.40808451]
[1750914585106,6.8749,145.39,145.32,162.48808451]
[1750914585707,6.8755,145.38,145.32,162.48808451]
[1750914586106,6.8755,145.38,145.35,6.8767]
[1750914586306,37.48808451,145.4,145.35,6.8767]
[1750914586509,6.8751,145.39,145.35,6.8767]
[1750914588106,6.8759,145.37,145.34,6.8771]
[1750914588313,3.40808451,145.38,145.34,6.8771]
[1750914589116,10.28378451,145.38,145.34,6.8771]
[1750914590407,10.28378451,145.38,145.35,6.8768]
[1750914590802,10.28378451,145.38,145.34,6.8771]
[1750914593206,6.8762,145.37,145.33,6.8775]
[1750914593404,3.40808451,145.38,145.31,4.5776]
[1750914593612,3.40808451,145.36,145.31,4.5776]
[1750914593810,6.8768,145.35,145.32,6.878]
[1750914594804,6.8773,145.34,145.3,159.18]
[1750914595010,37.58808451,145.36,145.27,125.0]
[1750914595011,3.40808451,145.32,145.27,125.0]
[1750914595205,3.40808451,145.32,145.26,127.3157]
[1750914595512,37.58808451,145.32,145.26,127.3157]
[1750914596402,34.18,145.32,145.29,6.8792]
[1750914597015,3.40808451,145.33,145.26,127.3157]
[1750914598411,3.40808451,145.33,145.28,6.8798]
[1750914598618,3.40808451,145.33,145.26,127.3157]
[1750914599314,6.8783,145.32,145.28,6.8797]
[1750914601410,6.8787,145.31,145.28,6.8797]
[1750914603017,6.8784,145.32,145.28,6.8797]
[1750914603423,10.28598451,145.33,145.29,6.8796]
[1750914603613,3.40808451,145.33,145.27,3.40808451]
[1750914603810,34.18,145.35,145.29,3.40808451]
[1750914604120,34.18,145.35,145.33,6.8775]
[1750914605119,34.18,145.35,145.32,6.8781]
[1750914605711,34.18,145.35,145.33,6.8776]
[1750914605919,6.876,145.37,145.3,8.5706386]
[1750914606109,6.876,145.37,145.3,135.8326386]
[1750914606418,6.876,145.37,145.34,6.8773]
[1750914606619,6.876,145.37,145.3,135.8326386]
[1750914607117,6.876,145.37,145.33,6.8776]
[1750914607707,6.876,145.37,145.34,6.8771]
[1750914608120,6.876,145.37,145.31,8.5706386]
[1750914608317,6.876,145.37,145.33,6.8775]
[1750914610419,6.8763,145.36,145.33,6.8775]
[1750914612221,11.70709861,145.37,145.33,6.8775]
[1750914612421,11.70709861,145.37,145.34,6.8772]
[1750914612422,6.876,145.37,145.34,6.8772]
[1750914617025,6.876,145.37,145.33,6.8776]
[1750914617229,6.876,145.37,145.32,8.5706386]
[1750914618026,41.0556,145.38,145.32,8.5706386]
[1750914618227,34.18,145.38,145.33,8.5706386]
[1750914618427,34.18,145.38,145.34,8.5706386]
[1750914618629,34.18,145.38,145.35,6.8767]
[1750914619729,41.0555,145.38,145.35,6.8767]
[1750914620230,34.18,145.38,145.36,6.8763]
[1750914621027,34.18,145.38,145.35,6.8766]
[1750914621227,34.18,145.38,145.34,8.5706386]
[1750914621727,34.18,145.38,145.35,6.8767]
[1750914622024,34.18,145.38,145.34,8.5706386]
[1750914622433,34.18,145.38,145.35,6.8767]
[1750914623435,34.18,145.38,145.36,6.8763]
[1750914627138,34.18,145.38,145.35,6.8766]
[1750914628037,41.0559,145.38,145.34,6.8772]
[1750914628935,41.0559,145.38,145.35,6.8767]
[1750914629139,34.18,145.38,145.35,6.8767]
[1750914630029,34.18,145.38,145.34,8.5706386]
[1750914630338,6.8746,145.4,145.34,11.97872311]
[1750914630736,44.64228451,145.41,145.37,6.8758]
[1750914630937,49.0271179,145.41,145.37,6.8758]
[1750914631139,44.64228451,145.41,145.37,6.8758]
[1750914631341,49.0271179,145.41,145.37,6.8758]
[1750914631537,44.64228451,145.41,145.37,6.8758]
[1750914631735,49.4922578,145.41,145.37,6.8758]
[1750914631941,44.64228451,145.41,145.37,6.8758]
[1750914632254,34.36,145.41,145.35,133.5706386]
[1750914632553,34.36,145.41,145.36,8.5706386]
[1750914632753,34.36,145.41,145.37,8.5706386]
[1750914633351,34.36,145.41,145.39,6.8749]
[1750914634347,34.36,145.41,145.38,6.8752]
[1750914636657,34.36,145.41,145.39,6.8749]
[1750914638350,34.36,145.41,145.36,13.2277386]
[1750914638351,41.2341,145.41,145.38,6.8752]
[1750914641362,34.36,145.41,145.39,6.8749]
[1750914642852,41.234,145.41,145.38,6.8752]
[1750914645464,34.36,145.41,145.36,13.2277386]
[1750914646268,36.53852751,145.41,145.37,2.17852751]
[1750914646768,36.53852751,145.41,145.38,6.8751]
[1750914647960,43.41262751,145.41,145.38,6.8751]
[1750914648166,36.53852751,145.41,145.37,2.17852751]
[1750914648466,2.17852751,145.4,145.37,10.74916611]
[1750914648963,2.17852751,145.38,145.37,8.5706386]
[1750914649158,2.17852751,145.39,145.36,10.74916611]
[1750914650266,2.17852751,145.39,145.37,6.8756]
[1750914651054,2.17852751,145.4,145.37,6.8756]
[1750914651859,2.17852751,145.39,145.37,6.8756]
[1750914653166,2.17852751,145.39,145.36,15.4468386]
[1750914654668,9.05342751,145.39,145.36,15.4468386]
[1750914655072,9.05402751,145.38,145.36,8.5706386]
[1750914657571,2.17852751,145.38,145.36,15.4469386]
[1750914659268,2.17852751,145.37,145.35,8.5706386]
[1750914659477,2.17852751,145.36,145.34,8.5706386]
[1750914659674,2.17852751,145.35,145.34,8.5706386]
[1750914659873,2.17852751,145.35,145.34,15.4479386]
[1750914660469,6.8761,145.37,145.34,15.4479386]
[1750914660776,2.17852751,145.36,145.34,15.4479386]
[1750914660974,9.05492751,145.36,145.34,8.5706386]
[1750914661175,2.17852751,145.35,145.33,15.4482386]
[1750914661478,39.2109,145.41,145.33,15.4482386]
[1750914661479,9.05582751,145.34,145.33,8.5706386]
[1750914661778,45.63615528,145.34,145.29,8.5706386]
[1750914661973,2.17852751,145.31,145.29,8.5706386]
[1750914662277,3.40862203,145.33,145.29,8.5706386]
[1750914663175,6.8784,145.32,145.29,15.4500386]
[1750914663374,3.40862203,145.33,145.29,6.8794]
[1750914663571,3.40862203,145.33,145.28,8.5706386]
[1750914663978,34.2,145.34,145.28,8.5706386]
[1750914664174,34.2,145.34,145.3,8.5706386]
[1750914664377,34.2,145.34,145.32,6.8782]
[1750914665874,34.2,145.34,145.33,6.8778]
[1750914666069,34.2,145.34,145.3,8.5706386]
[1750914666382,34.2,145.34,145.32,6.8781]
[1750914668477,34.2,145.34,145.31,6.8787]
[1750914673776,44.48592203,145.34,145.29,8.5706386]
[1750914674480,6.8778,145.33,145.29,8.5706386]
[1750914674876,3.40862203,145.32,145.27,8.5706386]
[1750914675077,3.40862203,145.32,145.26,8.5706386]
[1750914675273,3.40862203,145.32,145.27,8.5706386]
[1750914675676,3.40862203,145.32,145.28,6.8798]
[1750914675884,37.60862203,145.34,145.27,8.5706386]
[1750914676381,37.60862203,145.34,145.26,11.97926063]
[1750914676579,34.2,145.34,145.28,3.40862203]
[1750914677383,34.2,145.34,145.3,6.8792]
[1750914678278,34.2,145.34,145.31,6.8787]
[1750914679086,41.0773,145.34,145.31,6.8787]
[1750914679385,41.0773,145.34,145.3,6.879]
[1750914681486,34.2,145.34,145.31,6.8785]
[1750914682585,41.0773,145.34,145.31,6.8785]
[1750914683286,34.2,145.34,145.27,11.97926063]
[1750914683488,34.2,145.34,145.28,8.5706386]
[1750914683981,34.2,145.34,145.31,6.8784]
[1750914684285,41.0774,145.34,145.31,6.8784]
[1750914686192,41.0774,145.34,145.3,6.879]
[1750914686392,41.0774,145.34,145.27,11.97926063]
[1750914687689,41.0774,145.34,145.31,6.8786]
[1750914688192,34.2,145.34,145.31,6.8786]
[1750914690192,34.2,145.34,145.3,6.8791]
[1750914692292,2.18095154,145.33,145.3,6.8791]
[1750914693387,2.1808913,145.33,145.31,6.8786]
[1750914697096,2.18079557,145.33,145.31,6.8786]
[1750914699601,34.2,145.34,145.31,8.5706386]
[1750914699997,34.2,145.34,145.32,6.8779]
[1750914700496,34.2,145.34,145.31,10.75143417]
[1750914700695,2.18079557,145.35,145.31,10.75143417]
[1750914700998,2.18079557,145.35,145.33,6.8778]
[1750914705103,2.18079557,145.35,145.33,15.4484386]
[1750914705304,41.116,145.37,145.33,15.4484386]
[1750914705498,2.18079557,145.35,145.33,15.4484386]
[1750914708494,6.5959319,145.36,145.33,8.5706386]
[1750914708701,9.26485156,145.39,145.35,2.18079557]
[1750914708907,2.18079557,145.39,145.36,8.57697367]
[1750914709104,2.18079557,145.39,145.37,6.8758]
[1750914709797,36.42079557,145.4,145.37,6.8758]
[1750914710605,36.42079557,145.4,145.38,6.8752]
[1750914711019,34.24,145.4,145.37,8.57697367]
[1750914711210,34.24,145.4,145.38,6.875]
[1750914711506,2.18079557,145.41,145.38,6.875]
[1750914711507,2.18079557,145.42,145.38,8.57697367]
[1750914711716,2.18079557,145.42,145.39,8.57697367]
[1750914712007,34.22,145.43,145.38,2.18079557]
[1750914712008,2.18079557,145.41,145.38,8.57697367]
[1750914712396,2.18079557,145.41,145.37,8.57697367]
[1750914712806,2.18079557,145.41,145.37,15.45267367]
[1750914713506,45.93609184,145.43,145.37,10.75776924]
[1750914713712,2.18079557,145.41,145.37,10.75776924]
[1750914713896,2.18079557,145.42,145.37,10.75776924]
[1750914714301,2.18079557,145.42,145.38,2.18079557]
[1750914715298,2.18079557,145.42,145.38,10.75776924]
[1750914715602,2.18079557,145.42,145.39,6.8745]
[1750914716408,36.40079557,145.43,145.39,6.8745]
[1750914716706,36.40079557,145.43,145.4,9.05519557]
[1750914716707,34.22,145.43,145.4,9.05519557]